Workbook

Sheet Sheet1
B2: DIST. | C2: MIN. | D2: SEC. | E2: MPH | F2: KPH | G2: MIN./KM.
B4: 200 | C4: 2 | D4: 0 | E4: =H24 -> 3.728329087 | F4: =E4*1.6093 -> 6 | G4: =Q26 -> 00:10:00
B6: 300 | C6: 3 | D6: 0 | E6: =I24 -> 3.728329087 | F6: =E6*1.6093 -> 6 | G6: =R26 -> 00:10:00
B8: 400 | C8: 2 | D8: 0 | E8: =J24 -> 7.456658174 | F8: =E8*1.6093 -> 12 | G8: =S26 -> 00:05:00
B10: 500 | C10: 4 | D10: 0 | E10: =K24 -> 4.660411359 | F10: =E10*1.6093 -> 7.5 | G10: =T26 -> 00:08:00
B12: 600 | C12: 6 | D12: 15 | E12: =L24 -> 3.579195924 | F12: =E12*1.6093 -> 5.76 | G12: =U26 -> 00:10:25
B14: 800 | C14: 4 | D14: 0 | E14: =M24 -> 7.456658174 | F14: =E14*1.6093 -> 12 | G14: =V26 -> 00:05:00
B16: 1000 | C16: 5 | D16: 15 | E16: =N24 -> 7.101579214 | F16: =E16*1.6093 -> 11.42857143 | G16: =W26 -> 00:05:15
B18: 1200 | C18: 7 | D18: 15 | E18: =O24 -> 6.171027455 | F18: =E18*1.6093 -> 9.931034483 | G18: =X26 -> 00:06:02.500
B20: 1600 | C20: 8 | D20: 0 | E20: =P24 -> 7.456658174 | F20: =E20*1.6093 -> 12 | G20: =Y26 -> 00:05:00 | H20: 200 | I20: 300 | J20: 400 | K20: 500 | L20: 600 | M20: 800 | N20: 1000 | O20: 1200 | P20: 1600
H21: =D4/60 -> 0 | I21: =D6/60 -> 0 | J21: =D8/60 -> 0 | K21: =D10/60 -> 0 | L21: =D12/60 -> 0.25 | M21: =D14/60 -> 0 | N21: =D16/60 -> 0.25 | O21: =D18/60 -> 0.25 | P21: =D20/60 -> 0
H22: =C4+H21 -> 2 | I22: =C6+I21 -> 3 | J22: =C8+J21 -> 2 | K22: =C10+K21 -> 4 | L22: =C12+L21 -> 6.25 | M22: =C14+M21 -> 4 | N22: =C16+N21 -> 5.25 | O22: =C18+O21 -> 7.25 | P22: =C20+P21 -> 8
H23: =H22*1609.3/B4 -> 16.093 | I23: =I22*1609.3/B6 -> 16.093 | J23: =J22*1609.3/B8 -> 8.0465 | K23: =K22*1609.3/B10 -> 12.8744 | L23: =L22*1609.3/B12 -> 16.76354167 | M23: =M22*1609.3/B14 -> 8.0465 | N23: =N22*1609.3/B16 -> 8.448825 | O23: =O22*1609.3/B18 -> 9.722854167 | P23: =P22*1609.3/B20 -> 8.0465
H24: =60/H23 -> 3.728329087 | I24: =60/I23 -> 3.728329087 | J24: 7.456658174 | K24: 4.660411359 | L24: 3.579195924 | M24: 7.456658174 | N24: 7.101579214 | O24: 6.171027455 | P24: 7.456658174
H26: =H22*1000/200 -> 10 | I26: =I22*1000/300 -> 10 | J26: =J22*1000/400 -> 5 | K26: =K22*1000/500 -> 8 | L26: =L22*1000/600 -> 10.41666667 | M26: =M22*1000/800 -> 5 | N26: =N22*1000/1000 -> 5.25 | O26: =O22*1000/1200 -> 6.041666667 | P26: =P22*1000/1600 -> 5 | Q26: =H27/86400 -> 00:10:00 | R26: =I27/86400 -> 00:10:00 | S26: 00:05:00 | T26: 00:08:00 | U26: 00:10:25 | V26: 00:05:00 | W26: 00:05:15 | X26: 00:06:02.500 | Y26: 00:05:00
H27: =H26*60 -> 600 | I27: =I26*60 -> 600 | J27: 300 | K27: 480 | L27: 625 | M27: 300 | N27: 315 | O27: 362.5 | P27: 300
H28: =H27/86400 -> 0.006944444444 | I28: =I27/86400 -> 0.006944444444 | J28: =J27/86400 -> 0.003472222222 | K28: =K27/86400 -> 0.005555555556
